bitfinex-derivatives/quotes_BTCF0:USTF0_20250327
["timestamp","ask_amount","ask_price","bid_price","bid_amount"]
[1743111142501,0.13787966,87734.0,87733.0,0.00136]
[1743111143215,0.1710189,87727.0,87726.0,0.1140116]
[1743111143415,0.1710189,87727.0,87726.0,0.1157716]
[1743111143416,0.19489716,87727.0,87726.0,0.1157716]
[1743111144519,0.25969716,87727.0,87726.0,0.1157716]
[1743111144723,0.2358189,87727.0,87726.0,0.1157716]
[1743111144912,0.25964255,87727.0,87726.0,0.1157716]
[1743111145114,0.25964255,87727.0,87726.0,0.1157718]
[1743111146018,0.15240199,87727.0,87726.0,0.1157718]
[1743111148520,0.13774128,87727.0,87726.0,0.0901107]
[1743111148721,0.13834129,87727.0,87726.0,0.0913507]
[1743111148921,0.13834129,87727.0,87726.0,0.00124]
[1743111149119,0.13834129,87727.0,87726.0,0.1152518]
[1743111150412,0.13774128,87727.0,87726.0,0.1152518]
[1743111151827,0.13902128,87727.0,87726.0,0.1801518]
[1743111152022,0.13774128,87727.0,87726.0,0.1801518]
[1743111152431,0.0236712,87728.0,87726.0,0.2371576]
[1743111152723,0.1140131,87727.0,87726.0,0.1231458]
[1743111155032,0.1150131,87727.0,87726.0,0.1231458]
[1743111155733,0.1754131,87727.0,87726.0,0.1231458]
[1743111160534,0.1150131,87727.0,87726.0,0.1231458]
[1743111165732,0.1461131,87727.0,87726.0,0.1231458]
[1743111166238,0.14735311,87727.0,87726.0,0.1231458]
[1743111166430,0.1461131,87727.0,87726.0,0.1231458]
[1743111168043,0.1780131,87727.0,87726.0,0.1231458]
[1743111170647,0.1780131,87727.0,87726.0,0.00124]
[1743111170833,0.17925311,87727.0,87726.0,0.06394]
[1743111171139,0.1780131,87727.0,87726.0,0.06394]
[1743111171445,0.1786931,87727.0,87726.0,0.06394]
[1743111175243,0.1156931,87727.0,87726.0,0.1779518]
[1743111175943,0.1817931,87727.0,87726.0,0.1779518]
[1743111176144,0.1817931,87727.0,87726.0,0.06394]
[1743111176451,0.1817931,87727.0,87726.0,0.03064]
[1743111176649,0.1817931,87727.0,87726.0,0.03148]
[1743111176849,0.1817931,87727.0,87726.0,0.1454918]
[1743111182552,0.1817931,87727.0,87726.0,0.1762918]
[1743111192157,0.1156931,87727.0,87726.0,0.1762918]
[1743111192756,0.1470931,87727.0,87726.0,0.1762918]
[1743111193344,0.1797931,87727.0,87726.0,0.1762918]
[1743111193763,0.1470931,87727.0,87726.0,0.1762918]
[1743111194359,0.1797931,87727.0,87726.0,0.1762918]
[1743111195149,0.1470931,87727.0,87726.0,0.1762918]
[1743111196256,0.1785931,87727.0,87726.0,0.1762918]
[1743111197661,0.1785931,87727.0,87726.0,0.1454918]
[1743111201968,0.1785931,87727.0,87726.0,0.1759918]
[1743111211282,0.1785931,87727.0,87726.0,0.9059918]
[1743111211477,0.00168,87727.0,87726.0,0.9059918]
[1743111211668,0.001,87727.0,87726.0,1.1474071]
[1743111211863,0.001,87727.0,87726.0,1.18845645]
[1743111212063,0.001,87727.0,87726.0,1.20344031]
[1743111212363,0.001,87727.0,87726.0,0.97344031]
[1743111212770,0.001,87727.0,87726.0,1.00703339]
[1743111213286,8e-05,87732.0,87731.0,0.1140053]
[1743111213464,0.00092,87732.0,87731.0,0.18948773]
[1743111213664,0.00092,87732.0,87731.0,0.25548773]
[1743111213871,0.00092,87732.0,87731.0,0.29521716]
[1743111214374,8e-05,87732.0,87731.0,0.29521716]
[1743111214766,0.00092,87732.0,87731.0,0.29521716]
[1743111214965,0.00192,87732.0,87731.0,0.29521716]
[1743111215376,0.001,87732.0,87731.0,0.29437716]
[1743111215773,0.001,87732.0,87731.0,0.26078408]
[1743111216172,0.001,87732.0,87731.0,0.26066427]
[1743111216480,0.001,87732.0,87731.0,0.26065543]
[1743111216673,0.001,87732.0,87731.0,0.23590986]
[1743111217769,0.001,87732.0,87731.0,0.23543655]
[1743111218179,0.001,87732.0,87731.0,0.2596627]
[1743111219173,0.001,87732.0,87731.0,0.5196627]
[1743111219384,0.001,87732.0,87731.0,0.2596627]
[1743111219674,0.001,87732.0,87731.0,0.4996627]
[1743111219871,0.001,87732.0,87731.0,0.2596627]
[1743111220273,0.001,87732.0,87731.0,0.25965433]
[1743111220482,0.001,87732.0,87731.0,0.29388004]
[1743111221271,0.0123996,87732.0,87731.0,0.29388004]
[1743111222085,0.1264036,87732.0,87731.0,0.12297927]
[1743111222281,0.1264036,87732.0,87731.0,0.23698457]
[1743111222282,0.0123996,87732.0,87731.0,0.23698457]
[1743111222478,8e-05,87735.0,87734.0,0.1140014]
[1743111222681,0.1139836,87748.0,87734.0,0.1140014]
[1743111222682,0.0329,87744.0,87736.0,0.1139982]
[1743111222980,0.1140762,87738.0,87737.0,0.08803927]
[1743111223184,0.11495621,87738.0,87737.0,0.12007927]
[1743111223378,0.11495621,87738.0,87737.0,0.85007927]
[1743111223577,0.1140762,87738.0,87737.0,0.85007927]
[1743111223779,0.1140762,87738.0,87737.0,0.84996029]
[1743111224569,0.1469762,87738.0,87737.0,0.84996029]
[1743111225480,0.1469762,87738.0,87737.0,0.84995659]
[1743111226073,0.1469762,87738.0,87737.0,0.96395409]
[1743111226887,0.1469762,87738.0,87737.0,0.94863322]
[1743111227088,0.1469762,87738.0,87737.0,0.96395309]
[1743111227987,0.1469762,87738.0,87737.0,0.93056738]
[1743111229889,0.1469762,87738.0,87737.0,1.29136738]
[1743111233294,0.1469762,87738.0,87737.0,1.32306738]
[1743111233496,0.1140762,87738.0,87737.0,1.32306738]
[1743111234505,0.1478762,87738.0,87737.0,1.32306738]
[1743111236694,0.1808762,87738.0,87737.0,1.32306738]
[1743111237093,0.1140762,87738.0,87737.0,1.32306738]
[1743111238207,8e-05,87738.0,87737.0,1.32306738]
[1743111238900,0.0364,87738.0,87737.0,1.32306738]
[1743111239701,0.00660412,87754.0,87750.0,0.0569899]
[1743111239894,0.0933784,87769.0,87754.0,0.1139754]
[1743111240093,0.056982,87763.0,87754.0,0.19853527]
[1743111240293,0.1139684,87760.0,87759.0,0.1139689]
[1743111240489,0.1139684,87760.0,87759.0,0.13012877]
[1743111240700,0.00092,87760.0,87759.0,0.13012877]
[1743111241007,0.1139676,87760.0,87759.0,0.89662877]
[1743111241209,0.1841676,87760.0,87759.0,0.93583878]
[1743111241404,0.2218876,87760.0,87759.0,0.93583878]
[1743111241806,0.1148876,87760.0,87759.0,0.93583878]
[1743111242007,0.1139676,87760.0,87759.0,0.93583878]
[1743111242504,0.1489676,87760.0,87759.0,0.93583878]
[1743111242807,0.2218076,87760.0,87759.0,0.93583878]
[1743111243004,0.2218076,87760.0,87759.0,0.16933878]
[1743111243599,0.2218076,87760.0,87759.0,0.20172956]
[1743111244106,0.2218076,87760.0,87759.0,0.18640969]
[1743111244610,0.2218076,87760.0,87759.0,0.15401891]
[1743111246092,0.10784,87760.0,87759.0,0.15401891]
[1743111246497,0.2209676,87760.0,87759.0,0.15401891]
[1743111246906,0.2218076,87760.0,87759.0,0.15401891]
[1743111247100,0.2218076,87760.0,87759.0,0.18881891]
[1743111250313,0.10784,87760.0,87759.0,0.18881891]
[1743111250612,0.2209676,87760.0,87759.0,0.18881891]
[1743111250816,0.22184761,87760.0,87759.0,0.18881891]
[1743111253807,0.22184761,87760.0,87759.0,0.22361891]
[1743111255713,0.22184761,87760.0,87759.0,0.18881891]
[1743111256805,0.22184761,87760.0,87759.0,0.15401891]
[1743111257402,0.22184761,87760.0,87759.0,0.18731891]
[1743111257812,0.22184761,87760.0,87759.0,0.22381891]
[1743111259517,0.22184761,87760.0,87759.0,0.15401891]
[1743111260618,0.22184761,87760.0,87759.0,0.12979276]
[1743111264618,0.22184761,87760.0,87759.0,0.15405698]
[1743111266018,0.22184761,87760.0,87759.0,0.1148089]
[1743111266218,0.22184761,87760.0,87759.0,0.18754121]
[1743111266424,0.22184761,87760.0,87759.0,0.54834121]
[1743111266922,0.22184761,87760.0,87759.0,0.51504121]
[1743111268319,0.22184761,87760.0,87759.0,0.40107231]
[1743111268820,0.22184761,87760.0,87759.0,0.51504121]
[1743111269221,0.22184761,87760.0,87759.0,0.40107231]
[1743111269525,0.22184761,87760.0,87759.0,0.51504121]
[1743111269726,0.22184761,87760.0,87759.0,0.49077517]
[1743111270928,0.22184761,87760.0,87759.0,0.37680627]
[1743111271529,0.22184761,87760.0,87759.0,0.49077517]
[1743111271729,0.22184761,87760.0,87759.0,0.37680627]
[1743111272529,0.22184761,87760.0,87759.0,0.49077517]
[1743111273128,0.22184761,87760.0,87759.0,0.37680627]
[1743111273925,0.22184761,87760.0,87759.0,0.01600627]
[1743111274229,0.1139689,87759.0,87758.0,0.20281562]
[1743111274427,0.11456891,87759.0,87758.0,0.20341562]
[1743111274632,0.20316891,87759.0,87758.0,0.20341562]
[1743111275621,0.20316891,87759.0,87758.0,0.0006]
[1743111278739,0.31711798,87759.0,87758.0,0.0006]
[1743111279326,0.113978,87752.0,87751.0,0.00017098]
[1743111279537,0.114738,87752.0,87751.0,0.00085098]
[1743111279839,0.202038,87752.0,87751.0,0.00085098]
[1743111282327,0.1139819,87749.0,87748.0,0.20281562]
[1743111282635,0.1139884,87744.0,87743.0,0.20281562]
[1743111282938,0.11494841,87744.0,87743.0,0.20341562]
[1743111283128,0.19874841,87744.0,87743.0,0.20341562]
[1743111284533,0.21037975,87744.0,87743.0,0.20341562]
[1743111286043,0.4553883,87744.0,87743.0,0.3614]
[1743111286627,0.4553883,87744.0,87743.0,0.37649671]
[1743111286825,0.4553883,87744.0,87743.0,0.01569671]
[1743111287031,0.4553883,87744.0,87743.0,0.01509671]
[1743111288239,0.4553883,87744.0,87743.0,0.01569671]
[1743111289631,0.4553883,87744.0,87736.0,0.0445]
[1743111289836,0.1139975,87737.0,87736.0,0.0451]
[1743111290037,0.11511751,87737.0,87736.0,0.0451]
[1743111290334,0.20191751,87737.0,87736.0,0.0451]
[1743111290535,0.20191751,87737.0,87736.0,0.0006]
[1743111293353,0.31589515,87737.0,87736.0,0.0006]
[1743111297549,0.1140014,87734.0,87733.0,0.0442]
[1743111297843,0.11512141,87734.0,87733.0,0.04484]
[1743111298147,0.20562141,87734.0,87733.0,0.04484]
[1743111298938,0.20562141,87734.0,87733.0,0.04584]
[1743111299446,0.20562141,87734.0,87733.0,0.00164]
[1743111302240,0.20562141,87734.0,87733.0,0.01638094]
[1743111302942,0.1140079,87729.0,87725.0,0.36097098]
[1743111303143,0.1140118,87726.0,87725.0,0.00085098]
[1743111303336,0.1153318,87726.0,87725.0,0.00017098]
[1743111303537,0.1611318,87726.0,87725.0,0.00017098]
[1743111304145,0.1611318,87726.0,87725.0,0.00517098]
[1743111304338,0.2046318,87726.0,87725.0,0.00517098]
[1743111304938,0.2046318,87726.0,87725.0,0.00417098]
[1743111306048,0.21304576,87726.0,87725.0,0.00417098]
[1743111306553,0.16954576,87726.0,87725.0,0.00317098]
[1743111307645,0.21314576,87726.0,87725.0,0.00317098]
[1743111308755,0.21314576,87726.0,87725.0,8e-08]
[1743111309253,0.3271377,87726.0,87725.0,8e-08]
[1743111314055,0.7448377,87726.0,87725.0,8e-08]
[1743111315450,0.7448377,87726.0,87725.0,0.01496721]
[1743111316050,0.7448377,87726.0,87725.0,1e-08]
[1743111318658,1.1056377,87726.0,87725.0,1e-08]
[1743111320258,0.1140209,87719.0,87717.0,0.00017098]
[1743111320459,0.6870222,87718.0,87717.0,0.00017098]
[1743111320661,0.6883422,87718.0,87717.0,0.00017098]
[1743111320963,0.80234453,87718.0,87717.0,0.00017098]
[1743111321464,0.80234453,87718.0,87713.0,0.0459]
[1743111321465,0.1140274,87714.0,87713.0,0.0459]
[1743111321656,0.1153474,87714.0,87713.0,0.0459]
[1743111321857,0.2477474,87714.0,87713.0,0.0459]
[1743111322254,0.36175493,87714.0,87713.0,0.0459]
[1743111322965,0.36475493,87714.0,87713.0,0.0459]
[1743111323265,0.36675493,87714.0,87713.0,0.0459]
[1743111325064,0.1140365,87707.0,87706.0,0.0434]
[1743111325263,0.2402365,87707.0,87706.0,0.044]
[1743111325464,0.2869365,87707.0,87706.0,0.044]
[1743111325668,0.29902605,87707.0,87706.0,0.044]
[1743111326357,0.34482605,87707.0,87706.0,0.0873]
[1743111326557,0.34582605,87707.0,87706.0,0.0873]
[1743111327264,0.45984268,87707.0,87706.0,0.0873]
[1743111329871,0.1140716,87680.0,87679.0,0.40938412]
[1743111330075,0.1140716,87680.0,87646.0,0.04410116]
[1743111330076,0.1140729,87679.0,87678.0,0.33849816]
[1743111330262,0.2079529,87679.0,87678.0,0.33849816]
[1743111330582,0.44668953,87679.0,87678.0,0.23778556]
[1743111330769,0.44668953,87679.0,87678.0,0.15303186]
[1743111331066,0.44668953,87679.0,87678.0,0.06948576]
[1743111331266,0.114082,87672.0,87671.0,0.32029522]
[1743111331474,0.1140833,87671.0,87670.0,0.00017111]
[1743111331659,0.1140937,87663.0,87662.0,0.0451]
[1743111331972,0.61094824,87663.0,87662.0,0.34509997]
[1743111332174,0.61246824,87663.0,87662.0,0.34509997]
[1743111332562,0.70646824,87663.0,87662.0,0.36001577]
[1743111333073,0.70646824,87663.0,87662.0,0.44911577]
[1743111334170,0.70646824,87663.0,87662.0,0.43419997]
[1743111334764,0.70646824,87663.0,87662.0,0.0891]
[1743111335068,0.70946824,87663.0,87662.0,0.0891]
[1743111335271,0.71246824,87663.0,87662.0,0.0891]
[1743111336273,0.114095,87662.0,87661.0,0.73]
[1743111336473,0.115575,87662.0,87661.0,0.73]
[1743111336669,0.206575,87662.0,87661.0,0.73]
[1743111337466,0.209575,87662.0,87661.0,0.73]
[1743111337864,0.1140989,87659.0,87658.0,0.0883]
[1743111338065,0.4763789,87659.0,87658.0,0.0883]
[1743111338270,0.4763789,87659.0,87638.0,0.114126]
[1743111338271,0.47635516,87659.0,87638.0,0.114126]
[1743111338471,0.1141236,87640.0,87639.0,0.8888242]
[1743111338673,0.1156036,87640.0,87639.0,0.7747]
[1743111338874,0.1156036,87640.0,87639.0,1.07469997]
[1743111340268,0.1156036,87640.0,87639.0,1.18882487]
[1743111340469,0.1156036,87640.0,87639.0,1.07669997]
[1743111340863,0.1156036,87640.0,87639.0,1.07869997]
[1743111341469,0.1156036,87640.0,87639.0,1.19282487]
[1743111341667,0.1156036,87640.0,87639.0,1.25612487]
[1743111341876,0.1156036,87640.0,87639.0,1.14199997]
[1743111344571,0.1156036,87640.0,87639.0,0.41199997]
[1743111344966,0.2385636,87640.0,87639.0,1.14199997]
[1743111345581,0.3267636,87640.0,87639.0,1.03399997]
[1743111345772,0.3267636,87640.0,87639.0,0.004]
[1743111345973,0.1141301,87635.0,87634.0,0.086]
[1743111346265,0.1141301,87635.0,87634.0,0.29999997]
[1743111346266,0.4764101,87635.0,87634.0,0.29999997]
[1743111346471,0.5646101,87635.0,87634.0,0.29999997]
[1743111347681,0.5646101,87635.0,87634.0,0.30199997]
[1743111349079,0.5646101,87635.0,87634.0,0.30499997]
[1743111350687,0.57331078,87635.0,87634.0,0.30499997]
[1743111352289,0.1141432,87625.0,87624.0,0.0228]
[1743111352485,0.5987032,87625.0,87624.0,0.32279997]
[1743111352783,0.6904032,87625.0,87624.0,0.32279997]
[1743111353710,0.6904032,87625.0,87624.0,0.32479997]
[1743111354301,0.6904032,87625.0,87624.0,0.32679997]
[1743111355102,0.5681232,87625.0,87624.0,0.32679997]
[1743111355300,0.6903632,87625.0,87624.0,0.32679997]
[1743111355793,0.6903632,87625.0,87624.0,0.31870211]
[1743111356609,0.1141549,87616.0,87615.0,0.1141558]
[1743111356809,0.1141549,87616.0,87615.0,0.29999997]
[1743111356810,0.4764349,87616.0,87615.0,0.29999997]
[1743111357010,0.5663349,87616.0,87615.0,0.41415617]
[1743111357205,0.5663349,87616.0,87615.0,0.29999997]
[1743111357913,0.5663349,87616.0,87615.0,0.30899997]
[1743111358306,0.57830487,87616.0,87615.0,0.33179997]
[1743111358613,0.57830487,87616.0,87615.0,0.44595617]
[1743111358808,0.57830487,87616.0,87615.0,0.30899997]
[1743111359804,0.57830487,87616.0,87615.0,0.30499997]
[1743111360006,0.1141744,87601.0,87578.0,0.3608]
[1743111360211,0.2372544,87601.0,87600.0,0.39999997]
[1743111360608,0.6902544,87601.0,87600.0,0.39999997]
[1743111362214,0.6902544,87601.0,87600.0,0.1]
[1743111362513,0.1141914,87588.0,87587.0,0.0799959]
[1743111362706,0.1141914,87588.0,87587.0,0.39477769]
[1743111362707,0.5979114,87588.0,87587.0,0.39477769]
[1743111363620,0.6885114,87588.0,87587.0,0.39477769]
[1743111364205,0.70035841,87588.0,87587.0,0.39477769]
[1743111364409,0.70035841,87588.0,87587.0,0.37999587]
[1743111365113,0.70035841,87588.0,87587.0,0.29999997]
[1743111365314,0.70035841,87588.0,87587.0,0.41419267]
[1743111365717,0.70035841,87588.0,87587.0,0.29999997]
[1743111366118,0.0570976,87586.0,87581.0,0.0571]
[1743111366318,0.1141992,87582.0,87581.0,0.35709997]
[1743111366514,0.1156792,87582.0,87581.0,0.29999997]
[1743111367314,0.00148,87582.0,87580.0,0.1142005]
[1743111367520,0.3808486,87581.0,87580.0,0.1142005]
[1743111367720,0.1142031,87579.0,87578.0,0.0571016]
[1743111367915,0.4765231,87579.0,87578.0,0.07199303]
[1743111369321,0.4765231,87579.0,87578.0,0.08906925]
[1743111369526,0.4765231,87579.0,87578.0,0.07419228]
[1743111369821,0.4765231,87579.0,87578.0,0.08907975]
[1743111370015,0.4765231,87579.0,87578.0,0.07419228]
[1743111372526,0.4765231,87579.0,87578.0,0.08904914]
[1743111372827,0.4765231,87579.0,87578.0,0.089049]
[1743111373418,0.5628231,87579.0,87578.0,0.089049]
[1743111374622,0.5628231,87579.0,87578.0,0.135049]
[1743111376014,0.2020231,87579.0,87578.0,0.135049]
[1743111379234,0.4178968,87587.0,87578.0,0.135049]
[1743111379235,0.114188,87591.0,87590.0,0.1141888]
[1743111379527,0.1141856,87593.0,87592.0,0.1141862]
[1743111379827,0.11522561,87593.0,87592.0,0.12960437]
[1743111380022,0.05813251,87593.0,87592.0,0.12960437]
[1743111380228,0.05813251,87593.0,87592.0,0.14469505]
[1743111380414,0.10253251,87593.0,87592.0,0.18779505]
[1743111380928,0.10353251,87593.0,87592.0,0.18779505]
[1743111381718,0.04644001,87593.0,87592.0,0.18779505]
[1743111382217,0.04644001,87593.0,87592.0,0.18776216]
[1743111382614,0.09094001,87593.0,87592.0,0.18776216]
[1743111382815,0.09094001,87593.0,87592.0,0.91776216]
[1743111383026,0.08994001,87593.0,87592.0,0.91776216]
[1743111383229,0.20412491,87593.0,87592.0,0.91776216]
[1743111383432,0.20412491,87593.0,87592.0,0.94066216]
[1743111383630,0.08994001,87593.0,87592.0,0.94066216]
[1743111384826,0.20412491,87593.0,87592.0,0.21066216]
[1743111385221,0.08994001,87593.0,87592.0,0.94066216]
[1743111386424,0.08994001,87593.0,87592.0,0.21066216]
[1743111387923,0.08994001,87593.0,87592.0,0.21080632]
[1743111390937,0.13314001,87593.0,87592.0,0.21080632]
[1743111391530,0.13314001,87593.0,87592.0,0.18790632]
[1743111391929,0.24732491,87593.0,87592.0,0.18790632]
[1743111392936,0.13314001,87593.0,87592.0,0.18790632]
[1743111393531,0.13314001,87593.0,87592.0,0.17297688]
[1743111393722,0.13314001,87593.0,87592.0,0.18791804]
[1743111394535,0.24732491,87593.0,87592.0,0.14481804]
[1743111395537,0.24732491,87593.0,87592.0,0.14481845]
[1743111397540,0.24732491,87593.0,87592.0,0.14481914]
[1743111397735,0.13314001,87593.0,87592.0,0.14481914]
[1743111400041,0.13314001,87593.0,87592.0,0.14482857]
[1743111405145,0.13314001,87593.0,87592.0,0.14481937]
[1743111405943,0.1321,87593.0,87592.0,0.14481937]
[1743111406536,0.13314001,87593.0,87592.0,0.14481937]
[1743111407148,0.10640389,87593.0,87592.0,0.1693093]
[1743111407842,0.10640389,87593.0,87592.0,0.14492675]
[1743111408241,0.1074439,87593.0,87592.0,0.14492675]
[1743111408648,0.10640389,87593.0,87592.0,0.14492675]
[1743111410068,0.1074439,87593.0,87592.0,0.14492675]
[1743111410562,0.10844671,87593.0,87592.0,0.14492675]
[1743111410958,0.1074067,87593.0,87592.0,0.14492675]
[1743111411854,0.1074067,87593.0,87592.0,0.14488372]
[1743111412461,0.13619811,87608.0,87601.0,0.1141744]
[1743111412761,0.13619811,87608.0,87601.0,0.14491192]
[1743111412762,0.00257424,87602.0,87601.0,0.14491192]
[1743111412961,0.00257424,87602.0,87601.0,0.23381192]
[1743111413558,0.00457424,87602.0,87601.0,0.23381192]
[1743111413761,0.04957424,87602.0,87601.0,0.23581192]
[1743111414264,0.04957424,87602.0,87601.0,0.23481192]
[1743111414465,0.04953425,87602.0,87601.0,0.23482399]
[1743111414866,0.04849424,87602.0,87601.0,0.23482399]
[1743111415171,0.04957424,87602.0,87601.0,0.23482399]
[1743111415372,0.04849424,87602.0,87601.0,0.23482399]
[1743111415573,0.04649424,87602.0,87601.0,0.23482399]
[1743111415759,0.04757424,87602.0,87601.0,0.23482399]
[1743111416073,0.13497424,87602.0,87601.0,0.23482399]
[1743111417062,0.13497424,87602.0,87601.0,0.24677369]
[1743111418261,0.13497424,87602.0,87601.0,0.24694676]
[1743111418861,0.13389424,87602.0,87601.0,0.24694676]
[1743111421171,0.13389424,87602.0,87601.0,0.14609706]
[1743111421956,0.13493425,87602.0,87601.0,0.14609706]
[1743111422161,0.13493425,87602.0,87601.0,0.13090508]
[1743111422362,0.13493425,87602.0,87601.0,0.4459387]
[1743111422675,0.13389424,87602.0,87601.0,0.4459387]
[1743111423871,0.13389424,87602.0,87601.0,0.45770633]
[1743111424363,0.13389424,87602.0,87601.0,0.47248754]
[1743111425775,0.13497424,87602.0,87601.0,0.47248754]
[1743111426075,0.13389424,87602.0,87601.0,0.47248754]
[1743111427074,0.13389424,87602.0,87601.0,0.20045392]
[1743111427475,0.13493425,87602.0,87601.0,0.20045392]
[1743111430965,0.13389424,87602.0,87601.0,0.20045392]
[1743111431170,0.00017122,87610.0,87609.0,0.114164]
[1743111431464,0.11545393,87610.0,87609.0,0.85985468]
[1743111431674,0.11549392,87610.0,87609.0,0.85985468]
[1743111432268,0.11541392,87610.0,87609.0,0.85985468]
[1743111433380,0.11541392,87610.0,87609.0,0.12985468]
[1743111433574,0.11645393,87610.0,87609.0,0.12985468]
[1743111434079,0.11745393,87610.0,87609.0,0.12985468]
[1743111434273,0.25005393,87610.0,87609.0,0.12985468]
[1743111436176,0.25005393,87610.0,87609.0,0.14457591]
[1743111438573,0.13589123,87610.0,87609.0,0.14457591]
[1743111439180,0.13589123,87610.0,87609.0,0.12948523]
[1743111439477,0.13485122,87610.0,87609.0,0.12948523]
[1743111440387,0.24901392,87610.0,87609.0,0.14416547]
[1743111440589,0.25005393,87610.0,87609.0,0.14418381]
[1743111441584,0.13589123,87610.0,87609.0,0.14418381]
[1743111443280,0.25005393,87610.0,87609.0,0.14418381]
[1743111443475,0.13589123,87610.0,87609.0,0.14418381]
[1743111444587,0.13589123,87610.0,87609.0,0.18708381]
[1743111446588,0.13589123,87610.0,87609.0,0.23178381]
[1743111446977,0.25005393,87610.0,87609.0,0.23178381]
[1743111448092,0.25005393,87610.0,87609.0,0.23187183]
[1743111449991,0.25005393,87610.0,87609.0,0.23186197]
[1743111452185,0.25005393,87610.0,87609.0,0.50389559]
[1743111453885,0.25005393,87610.0,87609.0,0.50389831]
[1743111455797,0.13589123,87610.0,87609.0,0.50389618]
[1743111455985,0.13485122,87610.0,87609.0,0.48921594]
[1743111457594,0.13485122,87610.0,87609.0,0.48924754]
[1743111457795,0.24901392,87610.0,87609.0,0.48924754]
[1743111457999,0.25005393,87610.0,87609.0,0.4892477]
[1743111459385,0.25005393,87610.0,87609.0,0.21721408]
[1743111459596,0.25005393,87610.0,87609.0,0.21721748]
[1743111460180,0.13589123,87610.0,87609.0,0.21721748]
[1743111460799,0.13589123,87610.0,87609.0,0.23205375]
[1743111461187,0.13589123,87610.0,87609.0,0.23203342]
[1743111461494,0.13589123,87610.0,87609.0,0.25737766]
[1743111462489,0.25005393,87610.0,87609.0,0.25737766]
[1743111462997,0.13589123,87610.0,87609.0,0.25737766]
[1743111463186,0.13564001,87610.0,87609.0,0.28178867]
[1743111463387,0.11019917,87610.0,87609.0,0.28178867]
[1743111464186,0.11019917,87610.0,87609.0,0.25737766]
[1743111464899,0.22436187,87610.0,87609.0,0.25737766]
[1743111465195,0.11019917,87610.0,87609.0,0.25737766]
[1743111465400,0.22436187,87610.0,87609.0,0.25737766]
[1743111465612,0.22436187,87610.0,87609.0,0.99663703]
[1743111465798,0.22332186,87610.0,87609.0,0.99663703]
[1743111465991,0.22332186,87610.0,87609.0,1.02102704]
[1743111466999,0.22332186,87610.0,87609.0,0.98084965]
[1743111467189,0.22332186,87610.0,87609.0,1.02216072]
[1743111468794,0.22332186,87610.0,87609.0,0.28290135]
[1743111469191,0.22332186,87610.0,87609.0,0.25851134]
[1743111469493,0.22332186,87610.0,87609.0,0.14434734]
[1743111469694,0.22436187,87610.0,87609.0,0.14434734]
[1743111469897,0.22332186,87610.0,87609.0,0.14434734]
[1743111470101,0.22436187,87610.0,87609.0,0.14434734]
[1743111470297,0.22436187,87610.0,87609.0,0.25851134]
[1743111471390,0.22436187,87610.0,87609.0,0.14434734]
[1743111472090,0.22436187,87610.0,87609.0,0.09964734]
[1743111472306,0.22436187,87610.0,87609.0,0.05674734]
[1743111472698,0.22436187,87610.0,87609.0,0.05671952]
[1743111473114,0.22436187,87610.0,87609.0,0.03131444]
[1743111473506,0.1141692,87605.0,87604.0,0.33867012]
[1743111473810,0.27540921,87605.0,87604.0,0.25731012]
[1743111474005,0.1141784,87598.0,87597.0,0.40510054]
[1743111474202,0.4749784,87598.0,87597.0,0.40570054]
[1743111474397,0.52217841,87598.0,87597.0,0.40570054]
[1743111474798,0.5207784,87598.0,87597.0,0.40510054]
[1743111476009,0.5207784,87598.0,87597.0,0.40710054]
[1743111477207,0.5754784,87598.0,87597.0,0.40710054]
[1743111477508,0.5754784,87598.0,87597.0,0.002]
[1743111479600,0.69247841,87598.0,87597.0,0.002]
[1743111479910,0.33167841,87598.0,87597.0,0.002]
[1743111480114,0.69247841,87598.0,87597.0,0.0026]
[1743111480409,0.69247841,87598.0,87597.0,0.002]
[1743111480806,0.69247841,87598.0,87597.0,0.0026]
[1743111481006,0.69247841,87598.0,87597.0,0.002]
[1743111485912,0.33167841,87598.0,87597.0,0.002]
[1743111486109,0.74507841,87598.0,87597.0,0.00264]
[1743111486414,0.74507841,87598.0,87597.0,0.002]
[1743111488316,0.38427841,87598.0,87597.0,0.002]
[1743111488505,0.74507841,87598.0,87597.0,0.002]
[1743111497023,1.00507841,87598.0,87597.0,0.002]
[1743111497226,0.74507841,87598.0,87597.0,0.002]
[1743111499232,1.02923691,87598.0,87597.0,0.002]
[1743111499528,1.02923691,87598.0,87589.0,0.0504]
[1743111499529,0.1141836,87594.0,87590.0,0.0526]
[1743111499723,0.2041836,87594.0,87593.0,2e-08]
[1743111499928,0.31048361,87594.0,87593.0,2e-08]
[1743111500127,0.68170321,87594.0,87593.0,2e-08]
[1743111500327,0.79586171,87594.0,87593.0,2e-08]
[1743111500827,1.21353959,87594.0,87593.0,2e-08]
[1743111501031,1.36353959,87594.0,87593.0,2e-08]
[1743111502029,1.36453959,87594.0,87593.0,2e-08]
[1743111502430,1.36553959,87594.0,87593.0,2e-08]
[1743111502635,1.36552404,87594.0,87593.0,2e-08]
[1743111503222,1.47948404,87594.0,87593.0,2e-08]
[1743111506422,1.65367208,87594.0,87593.0,2e-08]
[1743111507031,2.01447208,87594.0,87593.0,2e-08]
[1743111508223,2.01445596,87594.0,87593.0,2e-08]
[1743111508736,2.01413596,87594.0,87593.0,2e-08]
[1743111510433,1.89547785,87594.0,87593.0,2e-08]
[1743111513926,1.89545987,87594.0,87593.0,2e-08]
[1743111514128,1.74545987,87594.0,87593.0,2e-08]
[1743111514336,1.89545987,87594.0,87593.0,2e-08]
[1743111517739,1.89545459,87594.0,87593.0,2e-08]
[1743111518330,1.74545459,87594.0,87593.0,2e-08]
[1743111518542,0.1713568,87553.0,87547.0,0.63303121]
[1743111518726,0.17275681,87553.0,87552.0,0.1292819]
[1743111518931,0.1727968,87553.0,87552.0,0.1298819]
[1743111519530,0.18127787,87553.0,87552.0,0.0006]
[1743111519728,0.18227787,87553.0,87552.0,0.01564436]
[1743111519938,0.18227787,87553.0,87552.0,0.17374436]
[1743111520144,0.18227787,87553.0,87552.0,0.28798266]
[1743111520834,0.18327787,87553.0,87552.0,0.28798266]
[1743111521032,0.19506867,87553.0,87552.0,0.28798266]
[1743111521238,0.19406867,87553.0,87552.0,0.28798266]
[1743111521541,0.19506867,87553.0,87552.0,0.28798266]
[1743111523241,0.19506867,87553.0,87552.0,0.288129]
[1743111532369,0.30770867,87553.0,87552.0,0.288129]
[1743111532967,0.30770867,87553.0,87552.0,0.28788634]
[1743111536864,0.30770867,87553.0,87552.0,0.17364804]
[1743111537373,0.30770867,87553.0,87552.0,0.28788634]
[1743111539175,0.40980867,87553.0,87552.0,0.17364804]
[1743111539576,0.35730867,87553.0,87552.0,0.17364804]
[1743111539769,0.35730867,87553.0,87552.0,0.1587]
[1743111541476,0.35730867,87553.0,87552.0,0.2729383]
[1743111542080,0.71810867,87553.0,87552.0,0.2729383]
[1743111542565,0.71810867,87553.0,87552.0,0.1587]